Cogmind - Beta 15 @@@ ROGUE MODE // 2025.05.25 @ 17:02:51 Player: Niko Result: Destroyed by G-34 Mercenary with Small Laser Performance ------------- Evolutions (1) 500 Regions Visited (2) 400 Robots Destroyed (45) 225 Value Destroyed (1231) 1231 Prototype IDs (0) 0 Alien Tech Used (0) 0 Bonus (20) 20 TOTAL SCORE: 2376 Bonus ------- High Alert Combat Kills 20 Cogmind --------- Core Integrity 0/400 Matter 300/300 Energy 100/100 System Corruption 0% Temperature Cool (6) Movement Core (150) Ox2 Location -9/Materials Parts ------- > --- POWER (1) -------- (None) > --- PROPULSION (3) --- (None) > --- UTILITY (3) ------ Small Storage Unit Signal Interpreter > --- WEAPON (2) ------- Great Maul > --- INVENTORY (8) ---- Improved Ion Engine Flight Unit Flight Unit Flight Unit Hacking Suite Improved Datajack Improved Datajack Peak State ------------ > --- POWER ------------ Light Nuclear Core > --- PROPULSION ------- Light Treads Light Treads Armored Wheel > --- UTILITY ---------- Small Storage Unit Signal Interpreter Hardened Light Armor Plating > --- WEAPON ----------- Improved Datajack Great Maul > --- INVENTORY -------- Improved Ion Engine Flight Unit Flight Unit Flight Unit Hacking Suite Particle Cannon Improved Datajack Improved Datajack [Rating: 18] Favorites ----------- Power Ion Engine Engine Ion Engine Power Core Light Nuclear Core Propulsion Compact Wheel Treads Light Treads Wheel Compact Wheel Utility Small Storage Unit Device Sensor Array Storage Small Storage Unit Processor Signal Interpreter Protection Light Armor Plating Weapon Improved Datajack Energy Gun EM Pulse Gun Energy Cannon Particle Cannon Ballistic Gun Assault Rifle Impact Weapon Great Maul Special Melee Weapon Improved Datajack Build | -11 -10 -9 ------- Run | Yrd Mat Mat Slots Evolved 2 | . . 2 Power . | . . . Propulsion 1 | . . 1 Utility 1 | . . 1 Weapon . | . . . Parts Attached 30 | 5 9 16 Power 4 | 1 2 1 Engine 3 | 1 2 . Core 1 | . . 1 Reactor . | . . . Propulsion 9 | 2 2 5 Treads 3 | . . 3 Leg . | . . . Wheel 6 | 2 2 2 Hover . | . . . Flight . | . . . Utility 5 | . 2 3 Device 1 | . . 1 Storage 1 | . 1 . Processor 1 | . 1 . Hackware . | . . . Protection 2 | . . 2 Artifact . | . . . Weapon 12 | 2 3 7 Energy Gun 4 | 2 2 . Energy Cannon 1 | . . 1 Ballistic Gun 2 | . 1 1 Ballistic Cannon . | . . . Launcher . | . . . Special Weapon . | . . . Impact Weapon 3 | . . 3 Slashing Weapon . | . . . Piercing Weapon . | . . . Special Melee Weapon 2 | . . 2 Unidentified Prototypes . | . . . Parts Lost 14 | . 4 10 Power 3 | . 1 2 Propulsion 6 | . 1 5 Utility 2 | . . 2 Weapon 3 | . 2 1 Highest Loss Streak 3 | . 3 3 To Critical Strikes . | . . . Average Backups 6 | 2 4 7 Power 1 | . 1 1 Propulsion 1 | . . 2 Utility . | . . . Weapon 1 | . 1 1 Tool/Special . | . . . Unused Backups 14 | . . 14 Power 1 | . . 1 Propulsion 6 | . . 6 Utility 1 | . . 1 Weapon 4 | . . 4 Tool/Special 2 | . . 2 Average Slot Usage (%) 86 | . 93 81 Engine 6 | . 13 3 Core 2 | . . 3 Treads 4 | . . 7 Wheel 18 | . 28 13 Device 1 | . . 2 Storage 11 | . 13 11 Processor 10 | . 9 11 Protection 4 | . . 7 Energy Gun 9 | . 18 4 Ballistic Gun 4 | . 9 1 Impact Weapon 4 | . . 7 Special Melee Weapon 4 | . . 7 Peak Build Rating 18 | 5 9 18 Average Rating 10 | 3 6 12 On Entrance 4 | . 5 9 Naked Turns . | . . . Heaviest Build 20 | 8 15 20 Greatest Support 42 | 26 32 42 Greatest Overweight (x) 6 | . . 6 Average Overweight (x) . | . . . Largest Inventory Capacity 8 | 5 8 8 Average Capacity 7 | 5 7 8 Most Carried 8 | 5 8 8 Average Carried 6 | 2 4 7 Final Capacity 8 | 5 8 8 Final Carried 8 | 3 8 7 Class Distribution -------------------- 100% | Mutant Dominant Class ---------------- Mutant | -10/Materials Mutant | -9/Materials Resources | -11 -10 -9 ----------- Run | Yrd Mat Mat Matter Collected 672 | 209 288 175 Remotely . | . . . Salvage Created 1401 | . 440 961 Parts 69 | . 25 44 Haulers Intercepted 1 | . . 1 Recyclers Shooed . | . . . Parts Field Recycled . | . . . Retrieved Matter . | . . . Parts Self-Destructed . | . . . Prevented . | . . . Kills | -11 -10 -9 ------- Run | Yrd Mat Mat Combat Hostiles Destroyed 33 | . 10 23 Melee 11 | . . 11 Guns 13 | . 10 3 Classes Destroyed 8 | . 2 6 Worker 2 | . . 2 Hauler 1 | . . 1 Recycler 1 | . . 1 Operator 4 | . 1 3 Watcher 4 | . . 4 Swarmer 6 | . . 6 Grunt 21 | . 10 11 Sentry 6 | . . 6 Best Kill Streak 6 | . 2 6 Combat Bots Only 5 | . 2 5 Max Kills in Single Turn 1 | . 1 1 Gunslinging . | . . . Exploded . | . . . Melee 1 | . . 1 Uniques/NPCs Destroyed . | . . . Combat | -11 -10 -9 -------- Run | Yrd Mat Mat Hostile Shots Fired 244 | . 50 194 Missed 66 | . 15 51 Hits 178 | . 35 143 Projectile 178 | . 35 143 Critical Strikes 2 | . . 2 Damage Taken 2058 | . 431 1627 Core 507 | . 100 407 Absorbed by Shields . | . . . Core Remaining (%) 80 | 100 60 . Volleys Fired 85 | . 61 24 Largest 2 | . 2 2 Hottest 90 | . 90 90 Shots Fired 115 | . 88 27 Gun 111 | . 88 23 Cannon 4 | . . 4 Launcher . | . . . Special . | . . . Kinetic 56 | . 51 5 Thermal 30 | . 8 22 Explosive . | . . . Electromagnetic 29 | . 29 . Robot Hit Streak 13 | . 13 6 Robot Miss Streak 4 | . 4 4 Penetration Max . | . . . Secondary Targets 1 | . 1 . Max Gunslinging Chain 1 | . 1 . Shots Hit Robots 145 | . 61 84 Core Hits 47 | . 26 21 Critical Kills 4 | . 1 3 Critical Parts Destroyed 17 | . . 17 Critical Strikes 23 | . 2 21 Burn 2 | . 1 1 Destroy 1 | . 1 . Smash 20 | . . 20 Melee Attacks 88 | . . 88 Impact 81 | . . 81 Slashing . | . . . Piercing . | . . . Sneak Attacks 11 | . . 11 Combat Hostiles 1 | . . 1 Follow-up Attacks . | . . . Damage Inflicted 3724 | . 894 2830 Guns 987 | . 798 189 Cannons 61 | . . 61 Explosions 87 | . 87 . Melee 2580 | . . 2580 Ramming 9 | . 9 . Kinetic 461 | . 404 57 Thermal 338 | . 145 193 Explosive . | . . . Electromagnetic 336 | . 336 . Impact 2580 | . . 2580 Slashing . | . . . Piercing . | . . . Highest Corruption 6 | . 6 . Average Corruption 3 | . 3 . Corruption Purged . | . . . Corruption Blocked . | . . . Effects 12 | . 12 . Message Errors 2 | . 2 . Matter Fused 2 | . 2 . Heat Flow Errors 2 | . 2 . Energy Discharges 1 | . 1 . Data Loss (minor) 1 | . 1 . Data Loss (major) 1 | . 1 . Weapon Failures 3 | . 3 . Overload Shots . | . . . Overflow Damage 806 | . 6 800 Projectiles . | . . . Explosions 6 | . 6 . Melee 800 | . . 800 Knockbacks 6 | . . 6 Impact 6 | . . 6 Kinetic . | . . . Secondary . | . . . Self-Inflicted Damage 31 | . 31 . Shots 1 | . 1 . Rammed 2 | . 2 . Targets Rammed 2 | . 2 . Kicked . | . . . Crushed . | . . . Highest Temperature 279 | . 279 96 Average Temperature 43 | . 50 31 Received Heat Transfer 858 | . 222 636 Siege Activations . | . . . Martial Activations . | . . . Shielding Activations . | . . . Robots Disrupted . | . . . Combat Hostiles . | . . . Robots Corrupted 11 | . . 11 Combat Hostiles 9 | . . 9 Parts Fried 19 | . 2 17 Impact Corruptions 30 | . . 30 Robots Melted . | . . . Combat Hostiles . | . . . Parts Melted 2 | . 2 . Heat Transferred 941 | . 373 568 Parts Sabotaged . | . . . Parts Stolen . | . . . Parts Stripped . | . . . Power Chain Reactions 1 | . 1 . Alert | -11 -10 -9 ------- Run | Yrd Mat Mat Maximum Alert Level 2 | . . 2 Low Security (%) 82 | 100 100 70 Level 1 10 | . . 16 Level 2 7 | . . 12 Level 3 . | . . . Level 4 . | . . . Level 5 . | . . . High Security . | . . . Max Security . | . . . Peak Influence 434 | . 76 434 Initial . | . . . Average 104 | . 27 154 Influence Increases 1294 | . 329 965 Destroy 0b10 Robot/C 660 | . 200 460 Destroy 0b10 Robot/NC 60 | . 5 55 Destroy Leader 200 | . 60 140 Successful Hack 37 | . 14 23 Disable Machine 15 | . 15 . Destroy Structure 7 | . 5 2 Partial Spotted 15 | . . 15 Lose Combat Pursuer 300 | . 30 270 Influence Decreases 860 | . 329 531 Time Decay 724 | . 293 431 Lost Part 136 | . 36 100 Squads Dispatched 8 | . 5 3 Investigation 3 | . 2 1 Extermination . | . . . Reinforcement 5 | . 3 2 Assault . | . . . Garrison . | . . . Intercept . | . . . Searches Triggered . | . . . Construction Impeded . | . . . Haulers Reinforced . | . . . Active Scanning Responses . | . . . Cargo Convoy Interrupts . | . . . Stealth | -11 -10 -9 --------- Run | Yrd Mat Mat Distress Signals 2 | . . 2 Communications Jammed . | . . . Distress Signals . | . . . Times Spotted 79 | . 22 57 Peak Tracking Total 7 | . 3 7 Tactical Retreats 9 | . 1 8 Traps | -11 -10 -9 ------- Run | Yrd Mat Mat Traps Triggered 3 | . 3 . Indirectly . | . . . Trap Hack Attempts 16 | . . 16 Triggered . | . . . Disarmed 1 | . . 1 Reprogrammed . | . . . Reused . | . . . Traps Extracted . | . . . Installed . | . . . Triggered . | . . . Machines | -11 -10 -9 ---------- Run | Yrd Mat Mat Machines Disabled 1 | . 1 . Max in Single Turn 1 | . 1 . Machines Repaired . | . . . Machines Dismantled . | . . . Machines Sabotaged . | . . . Overloaded Fab Kills . | . . . Hacking | -11 -10 -9 --------- Run | Yrd Mat Mat Machines Accessed 9 | . 6 3 Terminals 8 | . 6 2 Fabricators . | . . . Repair Stations . | . . . Recycling Units . | . . . Scanalyzers 1 | . . 1 Garrison Access . | . . . Total Hacks 27 | . 15 12 Successful 20 | . 9 11 Failed 7 | . 6 1 Catastrophic 2 | . 1 1 Database Lockouts . | . . . Manual 19 | . 14 5 Terminals 21 | . 15 6 Fabricators . | . . . Repair Stations . | . . . Recycling Units . | . . . Scanalyzers 6 | . . 6 Garrison Access . | . . . Terminal Hacks 3 | . 2 1 Branch Access Points 1 | . 1 . Locate Traps 1 | . . 1 Dispatch Records 1 | . 1 . Fabricator Hacks . | . . . Repair Station Hacks . | . . . Recycling Unit Hacks . | . . . Scanalyzer 6 | . . 6 Insert Component 3 | . . 3 Analyze 3 | . . 3 Garrison Access Hacks . | . . . Unauthorized Hacks 11 | . 7 4 Terminals 11 | . 7 4 Assimilate 2 | . 1 1 Botnet 6 | . 5 1 Operators 3 | . 1 2 Fabricators . | . . . Repair Stations . | . . . Recycling Units . | . . . Scanalyzers . | . . . Garrison Access . | . . . Data Cores Recovered . | . . . Used . | . . . Hacking Detections 7 | . 5 2 Full Trace Events 3 | . 2 1 Feedback Events 1 | . 1 . Corruption 1 | . 1 . Feedback Blocked . | . . . Robot Schematics Acquired . | . . . Robots Built . | . . . Authchips . | . . . Time . | . . . Total Robot Build Rating . | . . . Part Schematics Acquired 3 | . . 3 Parts Built . | . . . Authchips . | . . . Time . | . . . Total Part Build Rating . | . . . Parts Repaired . | . . . Time . | . . . Parts Recycled . | . . . Recycled Matter . | . . . Retrieved Matter . | . . . Retrieved Components . | . . . Parts Scanalyzed 3 | . . 3 Part Schematics Acquired 3 | . . 3 Parts Damaged . | . . . Bothacking | -11 -10 -9 ------------ Run | Yrd Mat Mat Used RIF Installer . | . . . Robots Hacked 3 | . . 3 Non-combat 3 | . . 3 Combat . | . . . Robot Hacks Applied 4 | . . 4 parse_system 1 | . . 1 no_distress 3 | . . 3 Relay Couplers Released . | . . . Fabnet Peak Effective % . | . . . Robots Rewired . | . . . Allies Hacked . | . . . Hacks Repelled . | . . . Allies | -11 -10 -9 -------- Run | Yrd Mat Mat Total Allies . | . . . Largest Group . | . . . Highest-Rated Group . | . . . Highest-Rated Ally . | . . . Total Orders . | . . . Ally Attacks . | . . . Total Damage . | . . . Kills . | . . . Allies Corrupted . | . . . Allies Melted . | . . . Intel | -11 -10 -9 ------- Run | Yrd Mat Mat Active Infowar (turns) 355 | . . 355 Sensors 355 | . . 355 Robot Analysis Total . | . . . Derelict Logs Recovered . | . . . Drone Launches . | . . . Drone Recoveries . | . . . Exploration | -11 -10 -9 ------------- Run | Yrd Mat Mat Turns Passed 2175 | 52 789 1334 Spaces Moved 1322 | 45 610 667 Core 116 | 10 . 106 Treads 175 | . . 175 Legs . | . . . Wheels 1031 | 35 610 386 Hover . | . . . Flight . | . . . Fastest Speed 50 | 50 90 85 Average Speed 112 | 81 95 130 Slowest Speed 350 | 90 100 350 Overloaded Moves . | . . . Propulsion Burnouts . | . . . Robots Hopped . | . . . Potential Cave-ins 4 | . . 4 Cave-ins Triggered . | . . . Exploration Rate (%) 48 | 4 81 59 Regions Visited 2 Branch Regions . Pre-discovered Areas . | . . . Known Exits Taken 1 | . 1 . Unknown Exits Taken 1 | 1 . . Scrap Searched . | . . . Spaces Dug 6 | . . 6 Terrain Destroyed 8 | . 2 6 Melee 6 | . . 6 Projectile . | . . . AOE 2 | . 2 . Terrain Rammed . | . . . Walls Destroyed . | . . . Machines Disabled . | . . . Actions | -11 -10 -9 --------- Run | Yrd Mat Mat Total 1740 | 60 724 956 Wait 131 | 3 26 102 Move 1320 | 44 609 667 Hop . | . . . Pick Up 39 | 8 12 19 Fast Attach 3 | . . 3 Attach 24 | 5 8 11 Detach 3 | . 2 1 Swap 6 | . 2 4 Drop 23 | . 2 21 Fire 85 | . 61 24 Melee 88 | . . 88 Ram 2 | . 2 . Kick . | . . . Crush . | . . . Escape Stasis . | . . . Rewire . | . . . Trap 16 | . . 16 Miscellaneous . | . . . Route ------- -11/Scrapyard -10/Materials (discovered 4 exits: *Mat x3 / *Min) -9/Materials (discovered 4 exits: *Mat x2 / *Sto x2) History --------- Turn | Location | Event 12 | -11/Scrapyard | Discovered new exit (range 16) 53 | -11/Scrapyard | Entered Materials 172 | -10/Materials | Discovered new exit (range 12) 210 | -10/Materials | Identified exit to Mines 226 | -10/Materials | Discovered new exit (range 5) 330 | -10/Materials | Build established: Mutant 413 | -10/Materials | Identified exit to Materials 553 | -10/Materials | Derelicts attacked the area 602 | -10/Materials | Discovered exit to Materials (range 10) 695 | -10/Materials | Lost 3 parts (1p2w) 842 | -10/Materials | Entered another Materials area 842 | -9/Materials | Evolved 2 slots: Propulsion x1, Utility x1 957 | -9/Materials | Discovered new exit (range 8) 964 | -9/Materials | Identified exit to Storage 1126 | -9/Materials | Discovered new exit (range 7) 1132 | -9/Materials | Identified exit to Materials 1240 | -9/Materials | Lost 3 parts (1p1n1u) 1507 | -9/Materials | Discovered exit to Materials (range 13) 1845 | -9/Materials | Core integrity fell below 50% 1939 | -9/Materials | Lost 3 parts (1p2n) 2019 | -9/Materials | Discovered exit to Storage (range 13) 2161 | -9/Materials | Core integrity fell below 20% 2176 | -9/Materials | Destroyed by G-34 Mercenary with Small Laser Last Messages --------------- S-10 Pest unfolds itself. S-10 Pest destroyed. K-01 Serf collects debris. Acquired 19 matter. K-01 Serf collects debris. G-34 Mercenary suffers critical hit (Smash). Destroyed Heat Sink. G-34 Mercenary system corrupted by crushing effect. K-01 Serf collects debris. Imp. Datajack destroyed. G-34 Mercenary misfires. G-34 Mercenary destroyed. K-01 Serf collects debris. G-34 Mercenary suffers critical hit (Smash). Destroyed Aluminum Leg. G-34 Mercenary system corrupted by crushing effect. G-34 Mercenary knocked back. K-01 Serf collects debris. Map ----- +----------------------------------------------------+ | ?????????????????????# #???????????????????????? | | ???????####??????????# #???????????????????????? | | ???????# ??????????# #???????????????????????? | | ???????+ ??????????# #???????????????????????? | | ???????# ??????????# #?????########??????????? | | ???????# ??????????# #?????#//!! /#???"??????? | | ???????# ??????????# #?????# !! #??? ??????? | | ???????# ??????????# #?????# #??? ??????? | | ???????# ########### ####### ####+####### | | ?####### % ^ | | == ^ | | ??###### r% %= | | ???????####% ######## % ###+#############+####### | | ??????????#* #??????# ##*%= ## #????? | | ??????????# #??????# ## """ ## #????? | | ??????????# #??????# %## """ ## ! #????? | | ??????????# ######## k## """ ## #????? | | ??????????# # ## ## % ## #????? | | ??????????# #!!! ## ## """ ## #????? | | ??????????# #!!! # #[""" / ## #???## | | ??????????# #!!! # #%""" ## ##### | | #+######### # /% # % ## /%! | | # # # ############### | | # ! # =g# #??????????#### | | ####+######g#########?????????##! | | ##+######## # T % * ##@#?????????????????#! | | #??# [# """ ##s#?????????????????#! | | "" """ #??# %[#% """ ##s#?????????????????#! | | "" """ #??# % +%% """ ##s#?????????????????#! | | "" """ #??#] %#= ##k#?????????????????##! | | #??##### """ ##[#??????????????????##### | | #??????# """ ## #???????????????????# | | #??????# """ ## #???????????????????# | | #??????# # ???????????????????# | | ########??????########## ???????????????????# | | ???????????????????????? ???????????????????# | | ???????????????????????? ???????????????????# "" | | ???????????????????????# = #??????????????????# "Y | | ???????????????????????#*% #??????????????????# "" | | ???????????????????????+ #??????????????????# | | ???????????????????????# #????????????????###### | | ???????????????????????# "#????????????????# | | ???????????????????????# "%#????????????????# | | ???????????????????????# "#????????????????# " | | ???????????????????????# #????????????????# """ | | ???????????????????????# +????????????????# """ | | ???????????????????????# #????????????????# """ | | ???????????????????????# #????????????????# "" | | ???????????????????????# #????????????????# """ | | ???????????????????????# #????????????????# "" | +----------------------------------------------------+ Best States ------------- Heat Dissipation 28 Energy Generation 14 Energy Capacity 265 Matter Stores 300 Matter Capacity 300 Sight Range 16 Robot Scan Range 14 Terrain Scan Density 10 Armor Coverage 150 Evasion (%) 50 Recoil Reduction 2 Item Schematics ----------------- Datajack | -9/Materials | Scanalyzed Flight Unit | -9/Materials | Scanalyzed Lgt. Nuclear Core | -9/Materials | Scanalyzed Robot Schematics ------------------ None Fabricated ------------ Nothing Repaired ---------- Nothing Alien Tech Used ----------------- None Achievements -------------- None Challenges ------------ None Game ------ Seed AmuletGunLattice Manual? 0 Play Time 00:27:19 Cumulative 27.2 hours Start 2025.05.25 @ 16:36:39 End 2025.05.25 @ 17:02:51 Sessions 1 Manual Loads 0 Difficulty Rogue Special Mode None Game No. 51 Rogue 51 Adventurer 0 Explorer 0 Win Type - Total 0 Types 0/0/0/0/0/0/0/0/0/0 Lore% 14 Gallery% 24 Achievement% 26 Wizard Run 0 Options --------- Layout 1 ASCII 0 Keyboard 0 Movement Mouse Keybinds 0 Fullscreen 1 Font 24/Smallcaps Map View 50x35 Zoom Use 0% Tactical HUD 0 Map Filters NONE Filters NONE Steam 1 RUN: 2629e483-cac9-40cf-bc73-5d7408a587ae